{"text_format":"1","workbook":"xlsx","n_sheets":1,"sheets":["Thyroid Symptoms"],"not_rendered":{"charts":0,"images":0,"macros":1,"external_links":0,"defined_names":1,"comments":0,"pivot_tables":0},"unopened":[],"bounds":{"document_bytes":16777216,"sheet_cells":100000,"rows_first":2000,"rows_last":500,"rows_between":2000,"halvings":0,"cell_chars":16384,"cell_head_chars":4096},"cells_cut":0,"cells_raw":0,"read":"whole","date_system":"1900"}

{"sheet":"Thyroid Symptoms","index":0,"n_rows":275,"n_cols":11,"rows_kept":275,"cut":false,"hidden":false,"merged":[[28,0,28,11],[29,0,29,11],[0,0,0,11],[34,2,34,5],[3,0,3,11],[19,6,19,11],[21,7,21,10],[26,0,26,11],[16,5,17,5],[20,6,20,11],[25,0,25,11],[11,0,11,4],[12,0,12,4],[13,0,13,4],[14,0,14,4],[11,6,11,7],[12,6,12,7],[27,6,27,11],[30,0,30,11],[31,0,31,11],[32,12,32,16],[266,6,266,11],[34,13,34,16],[161,6,161,11],[241,6,241,11],[35,6,35,11],[100,6,100,11],[200,6,200,11],[182,6,182,11],[32,0,32,11],[3,21,3,27],[1,0,1,11],[2,0,2,11],[1,21,1,27],[2,21,2,27],[1,16,1,17],[22,14,22,16],[23,14,23,16],[24,14,24,16],[25,14,25,16],[17,14,17,16],[18,14,18,16],[19,14,19,16],[20,14,20,16],[21,14,21,16],[4,8,4,9],[15,13,15,16],[16,14,16,16],[4,10,4,11],[5,6,5,7],[5,10,5,11],[10,6,10,7],[4,6,4,7],[6,0,6,4],[7,0,7,4],[8,0,8,4],[9,0,9,4],[10,0,10,4],[4,0,4,4],[5,0,5,4],[13,6,13,7],[14,6,14,7],[5,8,5,9],[6,8,6,9],[7,8,7,9],[8,8,8,9],[9,8,9,9],[10,8,10,9],[11,8,11,9],[12,8,12,9],[13,8,13,9],[14,8,14,9],[6,6,6,7],[7,6,7,7],[8,6,8,7],[9,6,9,7],[11,10,11,11],[12,10,12,11],[13,10,13,11],[14,10,14,11],[6,10,6,11],[7,10,7,11],[8,10,8,11],[9,10,9,11],[10,10,10,11]]}
["Thyroid Symptom and Body Systems Checker"]
["Your \"TOP TEN\" HEALTH COMPLAINTS"]
["List your Top 10 Health Complaints in the left column. Then, each time you fill out this self-screen, rate the Intensity of your symptoms on a Scale of  0 - 10"]
["0 = Gone, Not Present     1 = Very Weak, Hardly Present   5 = Average   10 = Most Intense, Unbearable"]
["COMPLAINTS",null,null,null,null,"1st Test","2nd Test",null,"3rd Test",null,"4th Test"]
[]
[]
[]
[]
[]
[]
[]
[]
[]
[]
[]
["4th Test","3rd Test","2nd Test","Now","PAST","OVERALL TOTALS"]
[{"$f":"SUM(A19:A25)","v":0},{"$f":"SUM(B19:B25)","v":0},{"$f":"SUM(C19:C25)","v":0},{"$f":"SUM(D19:D25)","v":0},{"$f":"SUM(E19:E25)","v":0}]
[{"$f":"A99","v":0},{"$f":"B99","v":0},{"$f":"C99","v":0},{"$f":"D99","v":0},{"$f":"E99","v":0},"ENDOCRINE FUNCTION SUB-TOTAL"]
[{"$f":"A160","v":0},{"$f":"B160","v":0},{"$f":"C160","v":0},{"$f":"D160","v":0},{"$f":"E160","v":0},"NEURAL TISSUE HEALTH SUB-TOTAL"]
[{"$f":"A181","v":0},{"$f":"B181","v":0},{"$f":"C181","v":0},{"$f":"D181","v":0},{"$f":"E181","v":0},"MUSCULO-SKELETAL SUB-TOTAL","Copyright © 2008-2014"]
[{"$f":"A199","v":0},{"$f":"B199","v":0},{"$f":"C199","v":0},{"$f":"D199","v":0},{"$f":"E199","v":0},"CARBOHYDRATE SUB-TOTAL",null,"Healthexcel & Functional Diagnostic Nutrition"]
[{"$f":"A240","v":0},{"$f":"B240","v":0},{"$f":"C240","v":0},{"$f":"D240","v":0},{"$f":"E240","v":0},"EICOSANOID MODULATION SUB-TOTAL"]
[{"$f":"A265","v":0},{"$f":"B265","v":0},{"$f":"C265","v":0},{"$f":"D265","v":0},{"$f":"E265","v":0},"DETOXIFICATION SUB-TOTAL"]
[{"$f":"A275","v":0},{"$f":"B275","v":0},{"$f":"C275","v":0},{"$f":"D275","v":0},{"$f":"E275","v":0},"FAT & PROTEIN SUB-TOTAL"]
["Hit \"<Ctrl>Shift N\" to SORT tables by \"1st Test\" column Ratings"]
["Hit \"<Ctrl>Shift S\" to SORT tables by Symptoms"]
[]
["Please rate any condition that applies to you NOW and in the PAST, using the following scale:"]
["5 = Severe     4 = Strong     3 = Moderate     2 = Mild     1 = Weak     0 = Not Present"]
["              • Start by going through and rating each symptom  in the 1st Test column."]
["                            • Then go back and rate each symptom in the PAST column"]
["                            • Rate your response in the PAST column based on how you felt when the symptoms were at their WORST "]
[]
[null,null,"KEY:  Red numbers indicate worsening since last test. Green numbers indicate improvement."]
["4th Test","3rd Test","2nd Test","Now","PAST","ENDOCRINE FUNCTION                                                                      (Thyroid, Pancrease/Insulin, Ovarian Hormones)","NOTES & COMMENTS"]
[null,null,null,null,null,"asthma"]
[null,null,null,null,null,"bruise easily"]
[null,null,null,null,null,"bright light/sunlight bothers me"]
[null,null,null,null,null,"chronic illness "]
[null,null,null,null,null,"cold often"]
[null,null,null,null,null,"crave salt"]
[null,null,null,null,null,"decreased ability to handle cold"]
[null,null,null,null,null,"diarrhea"]
[null,null,null,null,null,"diminished sex drive, low libido"]
[null,null,null,null,null,"dizzy or light-headed upon standing"]
[null,null,null,null,null,"dry skin"]
[null,null,null,null,null,"edema, fluid retention (around ankles, under eyes, etc.)"]
[null,null,null,null,null,"endometriosis"]
[null,null,null,null,null,"energy low"]
[null,null,null,null,null,"excessive facial or body hair"]
[null,null,null,null,null,"exercise exhausts, makes me feel worse"]
[null,null,null,null,null,"fatigue easily"]
[null,null,null,null,null,"fatigue not relieved by sleep"]
[null,null,null,null,null,"fibrocystic breasts"]
[null,null,null,null,null,"hair brittle"]
[null,null,null,null,null,"hair loss"]
[null,null,null,null,null,"hay fever "]
[null,null,null,null,null,"headaches"]
[null,null,null,null,null,"heart arrhythmia"]
[null,null,null,null,null,"heart palpitations"]
[null,null,null,null,null,"heartburn, reflux, or GERD"]
[null,null,null,null,null,"hot flashes"]
[null,null,null,null,null,"hyperthyroid (medically diagnosed)"]
[null,null,null,null,null,"hypothyroid (medically diagnosed)"]
[null,null,null,null,null,"impotence"]
[null,null,null,null,null,"increased effort to perform daily tasks"]
[null,null,null,null,null,"indigestion when stressed or tense"]
[null,null,null,null,null,"low blood pressure"]
[null,null,null,null,null,"low body temperature (below 98 degrees orally)"]
[null,null,null,null,null,"menstrual irregularities/problems"]
[null,null,null,null,null,"migraines"]
[null,null,null,null,null,"nails brittle, break easily"]
[null,null,null,null,null,"nausea"]
[null,null,null,null,null,"need my daily coffee, tea, or cola (caffeine)"]
[null,null,null,null,null,"need to wear sunglasses in bright sunlight"]
[null,null,null,null,null,"night sweats"]
[null,null,null,null,null,"no energy to exercise"]
[null,null,null,null,null,"often awake between 2-3 a.m. (not because I’m hungry)"]
[null,null,null,null,null,"oily skin"]
[null,null,null,null,null,"PMS (cramps, nausea, headaches, irritability, etc.)"]
[null,null,null,null,null,"rashes, dermatitis, itching skin, or hives often"]
[null,null,null,null,null,"sleepy, drowsy during the day"]
[null,null,null,null,null,"slow to get going in a.m. and/or like to sleep late"]
[null,null,null,null,null,"sodium retention (medically diagnosed)"]
[null,null,null,null,null,"spider veins"]
[null,null,null,null,null,"swelling or puffiness under eyes"]
[null,null,null,null,null,"tender breasts"]
[null,null,null,null,null,"thin or delicate skin"]
[null,null,null,null,null,"thyroid disorders (medically diagnosed)"]
[null,null,null,null,null,"tire easily, low stamina/endurance"]
[null,null,null,null,null,"tired/low energy, especially in afternoon"]
[null,null,null,null,null,"unable to get pregnant"]
[null,null,null,null,null,"unable to maintain pregnancy"]
[null,null,null,null,null,"urinate frequently"]
[null,null,null,null,null,"uterine fibroids"]
[null,null,null,null,null,"vaginal dryness"]
[null,null,null,null,null,"wake up feeling tired or unrested"]
[{"$f":"SUM(A37:A98)","v":0},{"$f":"SUM(B37:B98)","v":0},{"$f":"SUM(C37:C98)","v":0},{"$f":"SUM(D37:D98)","v":0},{"$f":"SUM(E37:E98)","v":0},"ENDOCRINE SUB-TOTAL"]
[]
["4th Test","3rd Test","2nd Test","Now","PAST","NEURAL TISSUE HEALTH                                                 (Memory/Learning, Brain Fog, Quality of Sleep/Mood)","NOTES & COMMENTS"]
[null,null,null,null,null,"absentminded"]
[null,null,null,null,null,"ADD/ADHD"]
[null,null,null,null,null,"angry often"]
[null,null,null,null,null,"anxiety, anxiousness (can be for no apparent reason)"]
[null,null,null,null,null,"apathetic"]
[null,null,null,null,null,"avoid emotional confrontations or situations"]
[null,null,null,null,null,"best sleep often between 7 – 9 a.m."]
[null,null,null,null,null,"can’t think clearly"]
[null,null,null,null,null,"concentration difficult"]
[null,null,null,null,null,"decreased ability to handle stress or pressure"]
[null,null,null,null,null,"decreased tolerance of others"]
[null,null,null,null,null,"depression, sadness, melancholy"]
[null,null,null,null,null,"despair"]
[null,null,null,null,null,"emotionally stressed"]
[null,null,null,null,null,"fearful (can be for no apparent reason)"]
[null,null,null,null,null,"feel best in the evenings"]
[null,null,null,null,null,"feel overwhelmed often"]
[null,null,null,null,null,"feel unwell often"]
[null,null,null,null,null,"foggy thinking"]
[null,null,null,null,null,"forgetful"]
[null,null,null,null,null,"get confused often"]
[null,null,null,null,null,"hard to do tasks quickly"]
[null,null,null,null,null,"hard to get out of bed or get going in a.m."]
[null,null,null,null,null,"hard to think or act quickly"]
[null,null,null,null,null,"have little control over how I spend my time"]
[null,null,null,null,null,"hopelessness feelings"]
[null,null,null,null,null,"inability to calm down"]
[null,null,null,null,null,"insomnia - hard to fall asleep"]
[null,null,null,null,null,"insomnia - wake up & can’t go back to sleep"]
[null,null,null,null,null,"irritability"]
[null,null,null,null,null,"just don’t feel right, not myself"]
[null,null,null,null,null,"lack drive, motivation"]
[null,null,null,null,null,"learning is difficult"]
[null,null,null,null,null,"less productive than in the past"]
[null,null,null,null,null,"loud noises bother"]
[null,null,null,null,null,"memorization difficult"]
[null,null,null,null,null,"memory poor"]
[null,null,null,null,null,"mentally stressed"]
[null,null,null,null,null,"mood swings, emotional ups and downs"]
[null,null,null,null,null,"must force myself to keep going"]
[null,null,null,null,null,"nervous breakdowns"]
[null,null,null,null,null,"nervousness"]
[null,null,null,null,null,"panic attacks"]
[null,null,null,null,null,"procrastinate often"]
[null,null,null,null,null,"shake or feel nervous under pressure"]
[null,null,null,null,null,"sleeping pills needed for sleep"]
[null,null,null,null,null,"spacey, hard to focus"]
[null,null,null,null,null,"startle easily"]
[null,null,null,null,null,"stress or pressure causes me to lie down and rest"]
[null,null,null,null,null,"suddenly run out of energy"]
[null,null,null,null,null,"tearful, could cry easily"]
[null,null,null,null,null,"thinking gets confused when under pressure"]
[null,null,null,null,null,"thinking not as clearly as in the past"]
[null,null,null,null,null,"thoughts too many, too rapid"]
[null,null,null,null,null,"timid, overly cautious"]
[null,null,null,null,null,"upset easily"]
[null,null,null,null,null,"work best late at night"]
[null,null,null,null,null,"worry"]
[{"$f":"SUM(A102:A159)","v":0},{"$f":"SUM(B102:B159)","v":0},{"$f":"SUM(C102:C159)","v":0},{"$f":"SUM(D102:D159)","v":0},{"$f":"SUM(E102:E159)","v":0},"NEURAL TISSUE SUB-TOTAL"]
[]
["4th Test","3rd Test","2nd Test","Now","PAST","MUSCULO-SKELETAL HEALTH                                                              (Bone Turnover, Connective Tissue Turnover, Muscle Integrity)","NOTES & COMMENTS"]
[null,null,null,null,null,"arthritis, osteo"]
[null,null,null,null,null,"arthritis, rheumatoid"]
[null,null,null,null,null,"circulation poor"]
[null,null,null,null,null,"difficulty building muscle"]
[null,null,null,null,null,"losing muscle mass"]
[null,null,null,null,null,"low back pain"]
[null,null,null,null,null,"muscle weakness"]
[null,null,null,null,null,"osteopenia"]
[null,null,null,null,null,"osteoporosis"]
[null,null,null,null,null,"pain in jaw (TMJ)"]
[null,null,null,null,null,"pain in joints (not due to injury)"]
[null,null,null,null,null,"pain in low back area"]
[null,null,null,null,null,"pain in lower neck"]
[null,null,null,null,null,"pain in sciatica"]
[null,null,null,null,null,"pain in shoulders "]
[null,null,null,null,null,"pain in upper back"]
[null,null,null,null,null,"sprains or strains occur easily or often"]
[null,null,null,null,null,"stiffness or achiness, especially in morning"]
[{"$f":"SUM(A163:A180)","v":0},{"$f":"SUM(B163:B180)","v":0},{"$f":"SUM(C163:C180)","v":0},{"$f":"SUM(D163:D180)","v":0},{"$f":"SUM(E163:E180)","v":0},"MUSCULO-SKELETAL HEALTH SUB-TOTAL"]
[]
["4th Test","3rd Test","2nd Test","Now","PAST","CARBOHYDRATE METABOLISM\n(Cell Genetics, Glucose Balance)","NOTES & COMMENTS"]
[null,null,null,null,null,"alcohol intolerance"]
[null,null,null,null,null,"anger, irritability relieved by eating"]
[null,null,null,null,null,"craving for sweets"]
[null,null,null,null,null,"diabetes, Type I"]
[null,null,null,null,null,"diabetes, Type II"]
[null,null,null,null,null,"excessive hunger"]
[null,null,null,null,null,"feel faint often"]
[null,null,null,null,null,"feel weak"]
[null,null,null,null,null,"hyperglycemia–high blood sugar"]
[null,null,null,null,null,"hypoglycemia–low blood sugar"]
[null,null,null,null,null,"insulin resistance"]
[null,null,null,null,null,"light-headed often"]
[null,null,null,null,null,"nausea, eating relieves"]
[null,null,null,null,null,"often awake between 2-3 a.m. and need to eat something"]
[null,null,null,null,null,"shakiness, nervousness relieved by eating"]
[{"$f":"SUM(A184:A198)","v":0},{"$f":"SUM(B184:B198)","v":0},{"$f":"SUM(C184:C198)","v":0},{"$f":"SUM(D184:D198)","v":0},{"$f":"SUM(E184:E198)","v":0},"CARBOHYDRATE METABOLISM SUB-TOTAL"]
[]
["4th Test","3rd Test","2nd Test","Now","PAST","EICOSANOID MODULATION                                               (Immune Regulation, Pro/Anti-Inflammatory Response)","NOTES & COMMENTS"]
[null,null,null,null,null,"allergies - food"]
[null,null,null,null,null,"allergies – other inhalants"]
[null,null,null,null,null,"allergies – seasonal (hay fever)"]
[null,null,null,null,null,"allergies are worsening (severity, frequency, or to more things)"]
[null,null,null,null,null,"autoimmune diseases-ALS"]
[null,null,null,null,null,"autoimmune diseases-Crohn’s"]
[null,null,null,null,null,"autoimmune diseases-Graves’"]
[null,null,null,null,null,"autoimmune diseases-Hashimoto’s"]
[null,null,null,null,null,"autoimmune diseases-Lupus"]
[null,null,null,null,null,"autoimmune diseases-MS"]
[null,null,null,null,null,"autoimmune diseases-Other"]
[null,null,null,null,null,"bacterial infections"]
[null,null,null,null,null,"cancer"]
[null,null,null,null,null,"cardiovascular disease"]
[null,null,null,null,null,"catch colds easily"]
[null,null,null,null,null,"CFS-chronic fatigue syndrome"]
[null,null,null,null,null,"chemical sensitivities"]
[null,null,null,null,null,"coughs or colds usually last for several weeks"]
[null,null,null,null,null,"environmentally sensitive, reactive"]
[null,null,null,null,null,"food intolerances, reactivities, or allergies"]
[null,null,null,null,null,"fungal infections"]
[null,null,null,null,null,"get sick easily or often"]
[null,null,null,null,null,"gum infections (gingivitis)"]
[null,null,null,null,null,"headaches"]
[null,null,null,null,null,"immune deficiency"]
[null,null,null,null,null,"inflammation (not due to injury)"]
[null,null,null,null,null,"often get colds or flu"]
[null,null,null,null,null,"pain (not due to injury)"]
[null,null,null,null,null,"parasite infections"]
[null,null,null,null,null,"sensitive to odors, flowers, or chemicals"]
[null,null,null,null,null,"sick more often, takes longer to get well"]
[null,null,null,null,null,"sinus problems"]
[null,null,null,null,null,"tooth infections (pyorrhea)"]
[null,null,null,null,null,"urinary tract infections"]
[null,null,null,null,null,"viral infections (cmv)"]
[null,null,null,null,null,"viral infections (ebv)"]
[null,null,null,null,null,"viral infections (herpes)"]
[null,null,null,null,null,"yeast infections (candida)"]
[{"$f":"SUM(A202:A239)","v":0},{"$f":"SUM(B202:B239)","v":0},{"$f":"SUM(C202:C239)","v":0},{"$f":"SUM(D202:D239)","v":0},{"$f":"SUM(E202:E239)","v":0},"EICOSANOID MODULATION SUB-TOTAL"]
[]
["4th Test","3rd Test","2nd Test","Now","PAST","DETOXIFICATION CAPACITY (Heavy Metal/Endo Chelation, Mixed Function Oxidase Modulation)","NOTES & COMMENTS"]
[null,null,null,null,null,"acne "]
[null,null,null,null,null,"alternating constipation and diarrhea"]
[null,null,null,null,null,"aversion to certain foods"]
[null,null,null,null,null,"bloating "]
[null,null,null,null,null,"burping or belching"]
[null,null,null,null,null,"constipation (b.m. less than once a day)"]
[null,null,null,null,null,"dark circles under eyes"]
[null,null,null,null,null,"diarrhea"]
[null,null,null,null,null,"exposure to environmental toxins "]
[null,null,null,null,null,"heavy metal accumulation"]
[null,null,null,null,null,"intestinal gas"]
[null,null,null,null,null,"irritable bowel"]
[null,null,null,null,null,"kidney disorders"]
[null,null,null,null,null,"leaky gut"]
[null,null,null,null,null,"liver disorders"]
[null,null,null,null,null,"loss of appetite"]
[null,null,null,null,null,"lung disorders"]
[null,null,null,null,null,"often have nightmares"]
[null,null,null,null,null,"rashes, hives often"]
[null,null,null,null,null,"skin problems, bad skin, bad coloring"]
[null,null,null,null,null,"strong body odor"]
[null,null,null,null,null,"sweat burns my skin"]
[{"$f":"SUM(A243:A264)","v":0},{"$f":"SUM(B243:B264)","v":0},{"$f":"SUM(C243:C264)","v":0},{"$f":"SUM(D243:D264)","v":0},{"$f":"SUM(E243:E264)","v":0},"DETOXIFICATION CAPACITY SUB-TOTAL"]
[]
["4th Test","3rd Test","2nd Test","Now","PAST","FAT & PROTEIN METABOLISM                                       (Weight/Fat Distribution, Mucosal Surface Integrity, Protein Turnover)","NOTES & COMMENTS"]
[null,null,null,null,null,"digestive disorders"]
[null,null,null,null,null,"mucosal surface integrity problems"]
[null,null,null,null,null,"slow healing"]
[null,null,null,null,null,"sweat has an ammonia odor"]
[null,null,null,null,null,"unable to lose weight"]
[null,null,null,null,null,"weight gain - waist, hips, thighs"]
[null,null,null,null,null,"weight loss"]
[{"$f":"SUM(A268:A274)","v":0},{"$f":"SUM(B268:B274)","v":0},{"$f":"SUM(C268:C274)","v":0},{"$f":"SUM(D268:D274)","v":0},{"$f":"SUM(E268:E274)","v":0},"FAT & PROTEIN METABOLISM SUB-TOTAL"]